bitfinex/quotes_BTCUSD_20251113
["timestamp","ask_amount","ask_price","bid_price","bid_amount"]
[1763063088677,0.09159,99085.0,99060.0,0.20189737]
[1763063088929,0.09259,99085.0,99057.0,0.09816915]
[1763063089142,0.02,99080.0,99053.0,0.323]
[1763063089345,0.09259,99085.0,99057.0,0.09816915]
[1763063089961,0.09159,99085.0,99057.0,0.30007141]
[1763063090185,0.09159,99085.0,99058.0,0.20190159]
[1763063090504,0.00038872,99064.0,99057.0,0.30007141]
[1763063090707,0.09359,99085.0,99062.0,0.20189309]
[1763063090907,0.09159,99084.0,99054.0,0.09818]
[1763063091063,0.04906,99055.0,99051.0,0.323]
[1763063091486,0.04906,99062.0,99051.0,0.52491444]
[1763063091692,0.09159,99072.0,99057.0,0.001]
[1763063092005,0.04906,99071.0,99057.0,0.001]
[1763063092206,0.04919933,99071.0,99057.0,0.001]
[1763063092347,0.04919933,99071.0,99048.0,0.12329331]
[1763063092348,0.09159,99070.0,99048.0,0.12329331]
[1763063092548,0.01886373,99069.0,99048.0,0.12329331]
[1763063092775,0.01886373,99068.0,99048.0,0.12329331]
[1763063092980,0.01886373,99067.0,99048.0,0.12329331]
[1763063093221,0.01886373,99066.0,99051.0,0.002]
[1763063093424,0.09159,99070.0,99048.0,0.12329331]
[1763063093689,0.01886374,99069.0,99051.0,0.002]
[1763063093951,0.01886374,99068.0,99051.0,0.002]
[1763063094136,0.01886374,99067.0,99051.0,0.20191575]
[1763063094328,0.09159,99070.0,99051.0,0.001]
[1763063095138,0.01886433,99069.0,99051.0,0.002]
[1763063095341,0.04906,99069.0,99051.0,0.002]
[1763063095565,0.04906,99069.0,99051.0,0.10018]
[1763063095773,0.04906,99069.0,99052.0,0.09818]
[1763063095974,0.00023325,99058.0,99052.0,0.09818]
[1763063096858,0.00023325,99058.0,99057.0,0.09816915]
[1763063097081,0.00023325,99058.0,99057.0,0.3000731]
[1763063097324,0.00023325,99058.0,99057.0,0.20190395]
[1763063097986,0.00023325,99058.0,99057.0,0.30008395]
[1763063098185,0.00023325,99058.0,99057.0,0.20390395]
[1763063098935,0.00023325,99058.0,99057.0,0.20590395]
[1763063099369,0.00023325,99058.0,99057.0,0.15990395]
[1763063100983,0.00023325,99058.0,99057.0,0.48290395]
[1763063101279,0.00023325,99058.0,99057.0,0.52632269]
[1763063101491,0.00013933,99071.0,99070.0,0.52487746]
[1763063101719,0.00013933,99071.0,99070.0,0.59107746]
[1763063101928,0.00013933,99071.0,99070.0,0.52487746]
[1763063102557,0.00013933,99071.0,99070.0,0.5682962]
[1763063102774,0.00013933,99071.0,99070.0,0.58835173]
[1763063102974,0.00013933,99071.0,99070.0,0.58635173]
[1763063103441,0.00013933,99071.0,99070.0,0.58935173]
[1763063103643,0.0002,99100.0,99099.0,0.20181838]
[1763063103842,0.00066433,99100.0,99099.0,0.26801838]
[1763063104049,0.00066433,99100.0,99099.0,0.29998753]
[1763063104247,0.00066433,99100.0,99099.0,0.66640627]
[1763063104861,0.04913,99135.0,99109.0,0.323]
[1763063105064,0.00022927,99131.0,99117.0,0.09816915]
[1763063105309,0.00022927,99131.0,99117.0,0.17315034]
[1763063105739,0.00022927,99131.0,99117.0,0.09816915]
[1763063105938,0.00022927,99131.0,99102.0,0.323]
[1763063105939,0.04991,99118.0,99105.0,0.07565612]
[1763063106144,0.00049,99112.0,99105.0,0.07565612]
[1763063106482,0.03241,99106.0,99105.0,0.07565612]
[1763063106661,0.03241,99106.0,99067.0,0.04741]
[1763063106882,0.00023,99087.0,99074.0,0.30003825]
[1763063107137,0.05475,99105.0,99074.0,0.30003825]
[1763063107138,0.05475,99105.0,99074.0,0.09816915]
[1763063107624,0.00044048,99075.0,99074.0,0.62303698]
[1763063108099,0.00044048,99075.0,99074.0,0.00046433]
[1763063109267,0.00099048,99075.0,99074.0,0.00046433]
[1763063109476,0.00099048,99075.0,99074.0,0.00246433]
[1763063110658,0.00099048,99075.0,99074.0,0.00146433]
[1763063111787,0.04440922,99075.0,99074.0,0.00046433]
[1763063112008,0.2,99060.0,99030.0,0.00115065]
[1763063112233,0.47777542,99050.0,99030.0,0.00128998]
[1763063112465,0.09816915,99051.0,99030.0,0.00128998]
[1763063112693,0.09661,99050.0,99030.0,0.00128998]
[1763063112916,0.04585,99031.0,99030.0,0.00128998]
[1763063113164,0.04634,99031.0,99030.0,0.00128998]
[1763063113359,0.04901,99049.0,99030.0,0.00128998]
[1763063113360,0.04585,99039.0,99030.0,0.00128998]
[1763063113837,0.04585,99039.0,99030.0,0.04741]
[1763063114229,0.04585,99039.0,99030.0,0.24936739]
[1763063114425,0.04711,99050.0,99031.0,0.09816915]
[1763063114624,0.11693,99050.0,99030.0,0.04741]
[1763063114968,0.06982,99049.0,99027.0,0.20196473]
[1763063115190,0.06982,99049.0,99030.0,0.001]
[1763063115406,0.09816915,99048.0,99030.0,0.001]
[1763063115616,0.09816915,99048.0,99027.0,0.00013938]
[1763063115617,0.0007,99031.0,99027.0,0.00013938]
[1763063115821,0.47777542,99040.0,99027.0,0.00013938]
[1763063115822,0.06658,99028.0,99027.0,0.00013938]
[1763063116577,0.04711,99050.0,99036.0,0.04741]
[1763063116805,0.00999999,99080.0,99028.0,0.09075]
[1763063116806,0.21999998,99080.0,99040.0,0.95555084]
[1763063117008,0.04975,99101.0,99061.0,0.323]
[1763063117009,0.06075,99095.0,99061.0,0.323]
[1763063117218,0.06075,99095.0,99049.0,0.05365]
[1763063117219,0.04975,99079.0,99049.0,0.05365]
[1763063117557,0.04975,99079.0,99041.0,0.09075]
[1763063117558,0.00023322,99067.0,99054.0,0.20190994]
[1763063117782,0.00023322,99067.0,99041.0,0.09075]
[1763063118215,0.00023322,99067.0,99065.0,0.2018858]
[1763063118361,0.00023322,99067.0,99065.0,0.20188652]
[1763063118558,0.00023322,99067.0,99047.0,0.13816]
[1763063118761,0.00023322,99067.0,99064.0,0.20188896]
[1763063119184,0.00023322,99067.0,99059.0,0.20189928]
[1763063119413,0.00023322,99067.0,99062.0,0.20189308]
[1763063119611,0.00023322,99067.0,99047.0,0.04841]
[1763063119808,0.06075,99066.0,99064.0,0.001]
[1763063121356,0.06075,99066.0,99035.0,0.00771]
[1763063121555,0.06075,99066.0,99008.0,0.09029466]
[1763063121556,0.01694,99036.0,99018.0,0.07192086]
[1763063121754,0.04892,99032.0,99019.0,0.00013938]
[1763063122661,0.01645,99036.0,99019.0,0.00013938]
[1763063122844,0.09816915,99034.0,99019.0,0.00213938]
[1763063123209,0.01645,99036.0,99024.0,0.20196976]
[1763063123414,0.01645,99036.0,99026.0,0.20196651]
[1763063123619,0.01645,99036.0,99025.0,0.20196851]
[1763063123823,0.09816915,99034.0,99022.0,0.20197398]
[1763063124027,0.09816915,99034.0,99019.0,0.00213938]
[1763063124426,0.09816915,99034.0,99022.0,0.20197429]
[1763063124871,0.01645,99036.0,99025.0,0.20196807]
[1763063125075,0.09816915,99034.0,99025.0,0.2019676]
[1763063125282,0.09816915,99034.0,99024.0,0.002]
[1763063125482,0.09262,99033.0,99022.0,0.002]
[1763063125889,0.04943,99023.0,99022.0,0.004]
[1763063126212,0.09262,99031.0,99022.0,0.002]
[1763063126615,0.09262,99031.0,99022.0,0.004]
[1763063127048,0.01645,99036.0,99022.0,0.002]
[1763063127267,0.04943,99023.0,99022.0,0.002]
[1763063128336,0.04943,99023.0,99019.0,0.00013938]
[1763063128539,0.09816915,99024.0,99022.0,0.004]
[1763063128771,0.01584051,99023.0,99022.0,0.002]
[1763063128996,0.01584051,99023.0,99019.0,0.00013938]
[1763063129226,0.09262,99033.0,99017.0,0.20198461]
[1763063129227,0.09262,99033.0,99017.0,0.17712399]
[1763063129369,0.0927592,99033.0,99022.0,0.002]
[1763063129850,0.0001392,99033.0,99021.0,0.00023337]
[1763063130127,0.0001392,99033.0,99022.0,0.002]
[1763063130532,0.0001392,99033.0,99021.0,0.20221069]
[1763063130751,0.0001392,99033.0,99021.0,0.00023337]
[1763063131158,0.0001392,99033.0,99022.0,0.001]
[1763063131358,0.09654,99032.0,99022.0,0.001]
[1763063132201,0.09654,99032.0,99021.0,0.00123337]
[1763063132202,0.04554,99023.0,99021.0,0.00123337]
[1763063132424,0.09654,99032.0,99021.0,0.00123337]
[1763063132628,0.04554,99022.0,99021.0,0.00123337]
[1763063132968,0.09297,99022.0,99021.0,0.00123337]
[1763063133652,0.09297,99022.0,99021.0,0.00023337]
[1763063134460,0.09297,99022.0,99021.0,0.00223337]
[1763063134671,0.0001392,99033.0,99021.0,0.00223337]
[1763063134877,0.0001392,99033.0,99021.0,0.00423337]
[1763063135305,0.0001392,99033.0,99021.0,0.00223337]
[1763063135561,0.04743,99022.0,99021.0,0.00423337]
[1763063135891,0.0001392,99033.0,99021.0,0.00223337]
[1763063136097,0.0001392,99033.0,99022.0,0.20197472]
[1763063136416,0.0001392,99033.0,99021.0,0.00323337]
[1763063136578,0.0001392,99033.0,99021.0,0.00123337]
[1763063136775,0.0001392,99033.0,99021.0,0.00223337]
[1763063137601,0.09527,99022.0,99021.0,0.00123337]
[1763063137806,0.04743,99022.0,99021.0,0.00123337]
[1763063138020,0.04743,99030.0,99021.0,0.00123337]
[1763063138849,0.04743,99030.0,99021.0,0.00323337]
[1763063139055,0.0624,99022.0,99021.0,0.00323337]
[1763063139272,0.0624,99022.0,99021.0,0.00123337]
[1763063139631,0.0624,99022.0,99021.0,0.00223337]
[1763063140261,0.0624,99022.0,99021.0,0.00423337]
[1763063140464,0.0624,99022.0,99021.0,0.00223337]
[1763063141243,0.0624,99022.0,99021.0,0.00423337]
[1763063141965,0.07824089,99022.0,99021.0,0.00423337]
[1763063142603,0.09713099,99022.0,99021.0,0.00423337]
[1763063142800,0.323,99019.0,98977.0,0.04741]
[1763063143058,0.323,99019.0,98970.0,0.01050407]
[1763063143059,0.82097158,99010.0,98970.0,0.0004]
[1763063143277,0.03388,98977.0,98970.0,0.0004]
[1763063143486,0.03388,98977.0,98964.0,0.01981]
[1763063143487,0.03751,98971.0,98964.0,0.01981]
[1763063143821,0.03751,98971.0,98968.0,0.20208475]
[1763063144024,0.03388,98977.0,98964.0,0.01981]
[1763063144025,0.03388,98977.0,98975.0,0.20207041]
[1763063144443,0.03388,98977.0,98975.0,0.2025352]
[1763063144641,0.03388,98977.0,98975.0,0.20253518]
[1763063145260,0.04743,98984.0,98975.0,0.00046479]
[1763063145465,0.04743,98984.0,98975.0,0.202536]
[1763063145729,0.04743,98984.0,98978.0,0.2020644]
[1763063145856,0.04743,98984.0,98981.0,0.20205845]
[1763063146209,0.04743,98984.0,98975.0,0.00346479]
[1763063146210,0.04743,98984.0,98975.0,0.00546479]
[1763063146419,0.04743,98998.0,98983.0,0.06175]
[1763063146619,0.04743,98998.0,98980.0,0.60097158]
[1763063146855,0.09654,98997.0,98975.0,0.00446479]
[1763063147054,0.09654,98997.0,98980.0,0.60097158]
[1763063147198,0.09654,98997.0,98980.0,0.80303244]
[1763063147401,0.09654,98997.0,98987.0,0.20204626]
[1763063147602,0.09654,98997.0,98975.0,0.20253487]
[1763063147794,0.03124,98976.0,98975.0,0.00046479]
[1763063148026,0.03124,98976.0,98975.0,0.00146479]
[1763063148677,0.03124,98976.0,98975.0,0.00046479]
[1763063148900,0.09352278,98976.0,98975.0,0.00046479]
[1763063150009,0.09352278,98976.0,98975.0,0.00146479]
[1763063150208,0.05010404,98976.0,98975.0,0.00346479]
[1763063150419,0.04696,98982.0,98975.0,0.00346479]
[1763063150637,0.001,98976.0,98968.0,0.20208407]
[1763063150831,0.00146393,98976.0,98966.0,0.01160479]
[1763063151045,0.00146393,98976.0,98966.0,0.21369326]
[1763063151249,0.00246393,98976.0,98966.0,0.21369394]
[1763063151469,0.00246393,98976.0,98966.0,0.01160479]
[1763063151674,0.00146393,98976.0,98966.0,0.01160479]
[1763063152012,0.00046393,98976.0,98966.0,0.01260479]
[1763063152625,0.09654,98975.0,98966.0,0.001]
[1763063153478,0.02773,98967.0,98966.0,0.001]
[1763063153904,0.02773,98967.0,98966.0,0.00142705]
[1763063154699,0.2,98960.0,98940.0,0.0004]
[1763063154900,0.20999999,98970.0,98940.0,0.0004]
[1763063154901,0.06174,98941.0,98940.0,0.0004]
[1763063155102,0.04743,98941.0,98940.0,0.0004]
[1763063155298,0.02,98950.0,98940.0,0.0004]
[1763063155299,0.01585359,98947.0,98940.0,0.0004]
[1763063155984,0.42,98970.0,98940.0,0.0004]
[1763063156176,0.09816915,98950.0,98940.0,0.00153947]
[1763063156458,0.09816915,98950.0,98940.0,0.00053947]
[1763063156602,0.09816915,98950.0,98940.0,0.00153947]
[1763063156811,0.09816915,98950.0,98940.0,0.00053947]
[1763063156812,0.04629,98941.0,98940.0,0.00053947]
[1763063157880,0.04629,98941.0,98921.0,0.20218069]
[1763063158084,0.04629,98941.0,98940.0,0.001]
[1763063158550,0.04629,98941.0,98911.0,0.09816915]
[1763063158749,0.04629,98941.0,98910.0,0.60097158]
[1763063158750,0.09816915,98934.0,98910.0,0.60097158]
[1763063158920,0.04419,98914.0,98910.0,0.60097158]
[1763063159131,0.09816915,98934.0,98910.0,0.60111107]
[1763063159349,0.09816915,98934.0,98911.0,0.20220197]
[1763063159541,0.09816915,98917.0,98910.0,0.00013949]
[1763063159752,0.26419,98940.0,98910.0,0.00013949]
[1763063159753,0.08962391,98940.0,98939.0,0.31263475]
[1763063159950,0.04743,98988.0,98958.0,0.323]
[1763063160117,0.04743,98988.0,98952.0,0.04341874]
[1763063160118,0.04743,98988.0,98960.0,0.60097158]
[1763063160323,0.04743,98988.0,98957.0,0.0002336]
[1763063160324,0.05412,98987.0,98957.0,0.0002336]
[1763063160542,0.04429,98958.0,98957.0,0.0002336]
[1763063160771,0.04429,98966.0,98957.0,0.0002336]
[1763063160982,0.04439,98965.0,98957.0,0.0002336]
[1763063161213,0.04439,98958.0,98957.0,0.0002336]
[1763063161412,0.00046402,98966.0,98957.0,0.0002336]
[1763063161619,0.00046402,98966.0,98964.0,0.2020924]
[1763063162447,0.00046402,98966.0,98957.0,0.0919136]
[1763063162448,0.00046402,98966.0,98957.0,0.0002336]
[1763063162922,0.00046402,98966.0,98957.0,0.0012336]
[1763063163405,0.04553,98958.0,98957.0,0.0002336]
[1763063165166,0.04553,98958.0,98953.0,0.17434871]
[1763063165387,0.04553,98958.0,98947.0,0.04594]
[1763063165628,0.04553,98958.0,98950.0,0.20212075]
[1763063165846,0.04553,98963.0,98957.0,0.20210725]
[1763063166082,0.04553,98963.0,98957.0,0.20310725]
[1763063166299,0.04553,98963.0,98957.0,0.001]
[1763063166510,0.00046402,98966.0,98957.0,0.001]
[1763063166721,0.00046402,98966.0,98958.0,0.20210594]
[1763063166921,0.00046402,98966.0,98960.0,0.20210125]
[1763063167129,0.00046402,98966.0,98957.0,0.20210721]
[1763063167339,0.00046402,98966.0,98950.0,0.69855158]
[1763063167340,0.00046402,98966.0,98964.0,0.20209268]
[1763063168059,0.00046402,98966.0,98957.0,0.20210717]
[1763063168335,0.00046402,98966.0,98954.0,0.323]
[1763063168887,0.00046402,98966.0,98939.0,0.14532]
[1763063168888,0.09816915,98965.0,98939.0,0.14532]
[1763063169020,0.09816915,98965.0,98940.0,0.92397158]
[1763063169223,0.09816915,98965.0,98950.0,0.60097158]
[1763063169652,0.05330402,98966.0,98950.0,0.60097158]
[1763063169653,0.00046402,98966.0,98950.0,0.60097158]
[1763063169857,0.09816915,98965.0,98950.0,0.60097158]
[1763063170559,0.00046402,98966.0,98951.0,0.09658]
[1763063170789,0.00046402,98966.0,98965.0,0.01669]
[1763063170990,0.00046402,98966.0,98957.0,0.20210677]
[1763063171261,0.09816915,98965.0,98950.0,0.60197158]
[1763063171499,0.15100915,98965.0,98950.0,0.001]
[1763063171702,0.07171523,98964.0,98950.0,0.001]
[1763063171872,0.04548,98951.0,98920.0,0.60097158]
[1763063172084,0.04548,98951.0,98924.0,0.20217539]
[1763063172085,0.09816915,98944.0,98924.0,0.20217539]
[1763063172281,0.09816915,98944.0,98928.0,0.01664]
[1763063172991,0.03633,98929.0,98914.0,0.25093525]
[1763063173192,0.03633,98929.0,98914.0,0.04874]
[1763063173804,0.03633,98929.0,98915.0,0.323]
[1763063174009,0.03633,98929.0,98928.0,0.001]
[1763063174599,0.03633,98929.0,98915.0,0.323]
[1763063174600,0.10105,98929.0,98919.0,0.2021849]
[1763063174718,0.10105,98929.0,98914.0,0.002]
[1763063174719,0.09816915,98927.0,98914.0,0.004]
[1763063174935,0.09816915,98927.0,98914.0,0.002]
[1763063175409,0.09816915,98927.0,98915.0,0.323]
[1763063176500,0.03633,98929.0,98914.0,0.001]
[1763063176501,0.09646,98926.0,98914.0,0.001]
[1763063176656,0.03633,98929.0,98915.0,0.04764]
[1763063176859,0.09816915,98926.0,98915.0,0.04764]
[1763063177108,0.09816915,98944.0,98915.0,0.04764]
[1763063177109,0.22,98950.0,98918.0,0.09816915]
[1763063177282,0.02694227,98968.0,98918.0,0.09816915]
[1763063177283,0.02694227,98973.0,98960.0,0.20210185]
[1763063177480,0.00128128,98990.0,98983.0,0.323]
[1763063177743,0.00174636,98990.0,98983.0,0.323]
[1763063178076,0.00174636,98990.0,98989.0,0.20204265]
[1763063178474,0.00174636,98990.0,98989.0,0.52504265]
[1763063179559,0.00174636,98990.0,98989.0,0.45004265]
[1763063180263,0.00174636,98990.0,98989.0,0.45104265]
[1763063180476,0.00174636,98990.0,98989.0,0.45304265]
[1763063180679,0.00174636,98990.0,98989.0,0.45204265]
[1763063180916,0.00174636,98990.0,98989.0,0.326]
[1763063181752,0.00174636,98990.0,98989.0,0.003]
[1763063185817,0.02174636,98990.0,98989.0,0.003]
[1763063186014,0.02174636,98990.0,98989.0,0.001]
[1763063186214,0.02174636,98990.0,98989.0,0.002]
[1763063186336,0.00174636,98990.0,98989.0,0.002]
[1763063186535,0.00174636,98990.0,98989.0,0.003]
[1763063186737,0.00174636,98990.0,98980.0,0.47853601]
[1763063186987,0.14378,98989.0,98980.0,0.47853601]
[1763063187187,0.14378,98989.0,98957.0,0.15058736]
[1763063187188,0.14378,98989.0,98970.0,0.40353601]
[1763063187394,0.04548,98989.0,98971.0,0.09816915]
[1763063187571,0.00174636,98990.0,98983.0,0.20205316]
[1763063187735,0.00174636,98990.0,98985.0,0.20204998]
[1763063187943,0.00174636,98990.0,98984.0,0.20205168]
[1763063188198,0.00174636,98990.0,98982.0,0.04757]
[1763063188408,0.00174636,98990.0,98979.0,0.47853601]
[1763063188607,0.04548,98989.0,98980.0,0.001]
[1763063189235,0.04548,98989.0,98979.0,0.47853601]
[1763063189434,0.04548,98989.0,98982.0,0.001]
[1763063189877,0.04548,98989.0,98972.0,0.04757]
[1763063190054,0.09258,98988.0,98970.0,0.47853601]
[1763063190258,0.09258,98988.0,98980.0,0.001]
[1763063191068,0.00665,98981.0,98980.0,0.001]
[1763063191488,0.00665,98981.0,98970.0,0.47853601]
[1763063191852,0.00665,98981.0,98972.0,0.001]
[1763063192213,0.09258,98988.0,98970.0,0.47853601]
[1763063192416,0.09258,98988.0,98980.0,0.20206065]
[1763063192643,0.00174636,98990.0,98978.0,0.47853601]
[1763063192849,0.00174636,98990.0,98984.0,0.20205215]
[1763063193172,0.00174636,98990.0,98983.0,0.20205459]
[1763063193377,0.00174636,98990.0,98982.0,0.20205693]
[1763063193378,0.00174636,98990.0,98984.0,0.04589]
[1763063193782,0.007,98985.0,98975.0,0.03600491]
[1763063193993,0.007,98985.0,98971.0,0.03600491]
[1763063194194,0.007,98985.0,98970.0,0.80153601]
[1763063194343,0.007,98985.0,98970.0,0.47853601]
[1763063194733,0.007,98985.0,98976.0,0.20206845]
[1763063194938,0.007,98985.0,98974.0,0.20207135]
[1763063195171,0.007,98985.0,98971.0,0.09816915]
[1763063195946,0.007,98985.0,98971.0,0.3002466]
[1763063196153,0.007,98985.0,98971.0,0.09916915]
[1763063196366,0.007,98985.0,98972.0,0.20207735]
[1763063196636,0.007,98985.0,98977.0,0.02695184]
[1763063197112,0.06321,98978.0,98973.0,0.02695184]
[1763063197307,0.00036,98972.0,98971.0,0.002]
[1763063197483,0.00036,98972.0,98971.0,0.001]
[1763063197684,0.00036,98972.0,98962.0,0.02695184]
[1763063198107,0.09294,98972.0,98962.0,0.02695184]
[1763063198342,0.04512,98963.0,98962.0,0.02695184]
[1763063199127,0.04512,98963.0,98962.0,0.02795184]
[1763063199356,0.04512,98963.0,98961.0,0.02695184]
[1763063199578,0.04512,98963.0,98960.0,0.02695184]
[1763063199875,0.04512,98963.0,98962.0,0.002]
[1763063200091,0.04512,98963.0,98962.0,0.004]
[1763063200315,0.04512,98963.0,98962.0,0.002]
[1763063200523,0.04512,98971.0,98962.0,0.002]
[1763063200725,0.04512,98971.0,98962.0,0.02895184]
[1763063200928,0.04512,98971.0,98962.0,0.002]
[1763063201138,0.04512,98971.0,98963.0,0.02695184]
[1763063201341,0.04512,98971.0,98962.0,0.02895184]
[1763063201544,0.04512,98971.0,98956.0,0.23811489]
[1763063201545,0.04512,98971.0,98963.0,0.2020948]
[1763063201719,0.04512,98971.0,98961.0,0.20209861]
[1763063201947,0.04512,98971.0,98960.0,0.47853601]
[1763063202372,0.04512,98971.0,98963.0,0.001]
[1763063202782,0.04512,98971.0,98955.0,0.03600491]
[1763063202966,0.1377,98971.0,98955.0,0.03600491]
[1763063203298,0.04474,98989.0,98952.0,0.04764]
[1763063203299,0.04512,99042.0,98979.0,0.02761]
[1763063203492,0.04512,99042.0,99030.0,0.47853601]
[1763063203493,0.06398548,99041.0,99030.0,0.47853601]
[1763063203690,0.04512,99041.0,99030.0,0.47853601]
[1763063203987,0.04512,99041.0,99024.0,0.03600491]
[1763063204221,0.09258,99040.0,99022.0,0.03600491]
[1763063204441,0.09258,99040.0,99021.0,0.04224]
[1763063204639,0.09258,99040.0,99024.0,0.20196941]
[1763063204844,0.09258,99040.0,99025.0,0.20196919]
[1763063205056,0.09258,99040.0,99028.0,0.2019622]
[1763063205271,0.09258,99040.0,99021.0,0.04224]
[1763063205459,0.09358,99040.0,99021.0,0.04224]
[1763063205809,0.09258,99040.0,99021.0,0.04224]
[1763063206045,0.001,99040.0,99039.0,0.26119064]
[1763063206213,0.001,99040.0,99036.0,0.03600491]
[1763063206415,0.001,99040.0,99035.0,0.03600491]
[1763063206416,0.02239,99039.0,99035.0,0.03600491]
[1763063206614,0.02239,99039.0,99029.0,0.47853601]
[1763063206844,0.09258,99038.0,99024.0,0.03600491]
[1763063207013,0.09258,99038.0,99022.0,0.03600491]
[1763063207214,0.09258,99038.0,99023.0,0.03600491]
[1763063207424,0.09258,99038.0,99028.0,0.47853601]
[1763063208553,0.09258,99038.0,99023.0,0.001]
[1763063208717,0.06321,99023.0,99010.0,0.53254337]
[1763063208920,0.06321,99023.0,99010.0,0.47853601]
[1763063208921,0.01993,99017.0,99010.0,0.47853601]
[1763063209555,0.01993,99017.0,99002.0,0.22525552]
[1763063209755,0.01993,99017.0,99002.0,0.02324]
[1763063209974,0.01993,99017.0,99010.0,0.001]
[1763063210170,0.01993,99017.0,99007.0,0.47853601]
[1763063210818,0.01993,99017.0,99010.0,0.001]
[1763063211226,0.01993,99017.0,99007.0,0.47853601]
[1763063211568,0.01993,99017.0,99011.0,0.20199632]
[1763063211778,0.01993,99017.0,99009.0,0.20200028]
[1763063211981,0.01993,99017.0,99007.0,0.47953601]
[1763063212205,0.01993,99017.0,99008.0,0.20200387]
[1763063212355,0.01993,99017.0,99007.0,0.68154137]
[1763063212564,0.01993,99017.0,99007.0,0.47853601]
[1763063212769,0.04512,99026.0,99007.0,0.47853601]
[1763063213024,0.04512,99026.0,99020.0,0.47853601]
[1763063213232,0.04512,99026.0,99010.0,0.47853601]
[1763063213749,0.09258,99025.0,99002.0,0.02324]
[1763063213963,0.09258,99025.0,99011.0,0.001]
[1763063214489,0.09816915,99023.0,99011.0,0.001]
[1763063214753,0.09816915,99023.0,99010.0,0.47853601]
[1763063214948,0.19074915,99023.0,99010.0,0.47853601]
[1763063215492,0.09258,99022.0,99010.0,0.47853601]
[1763063215848,0.09258,99022.0,99010.0,0.40353601]
[1763063216219,0.04512,99026.0,99010.0,0.40353601]
[1763063216868,0.04512,99026.0,99012.0,0.20199418]
[1763063217065,0.04512,99026.0,99010.0,0.40353601]
[1763063217269,0.02239,99039.0,99002.0,0.02324]
[1763063217270,0.04512,99035.0,99025.0,0.0843]
[1763063217477,0.04512,99035.0,99021.0,0.47853601]
[1763063217918,0.04512,99035.0,99022.0,0.02324]
[1763063218298,0.001,99026.0,99022.0,0.02324]
[1763063218456,0.04445097,99035.0,99022.0,0.02324]
[1763063219094,0.04445097,99035.0,99023.0,0.20197327]
[1763063219302,0.04445097,99035.0,99025.0,0.47853601]
[1763063219470,0.04445097,99035.0,99022.0,0.02424]
[1763063220519,0.04445097,99035.0,99022.0,0.02324]
[1763063220725,0.04445097,99035.0,99006.0,0.05400736]
[1763063220726,0.11179,99023.0,99006.0,0.05400736]
[1763063220933,0.11179,99023.0,99010.0,0.47853601]
[1763063220934,0.01891,99022.0,99010.0,0.47853601]
[1763063221151,0.04445097,99035.0,99011.0,0.09816915]
[1763063221359,0.02239,99039.0,99025.0,0.47853601]
[1763063221793,0.02239,99039.0,99032.0,0.20195462]
[1763063222003,0.02239,99039.0,99032.0,0.20195314]
[1763063222208,0.02239,99039.0,99031.0,0.2019562]
[1763063222422,0.06233,99032.0,99020.0,0.47853601]
[1763063222631,0.02339,99039.0,99010.0,0.80153601]
[1763063222632,0.01395,99031.0,99010.0,0.80153601]
[1763063222839,0.01395,99031.0,99011.0,0.02316915]
[1763063223289,0.01395,99031.0,99012.0,0.20199571]
[1763063223492,0.09816915,99038.0,99020.0,0.47853601]
[1763063223857,0.09816915,99038.0,99027.0,0.20196476]
[1763063224047,0.09028948,99042.0,99032.0,0.20195484]
[1763063224048,0.00013948,99042.0,99032.0,0.20195484]
[1763063224276,0.00013948,99042.0,99033.0,0.20195206]
[1763063224476,0.00013948,99042.0,99028.0,0.47853601]
[1763063224781,0.04885,99041.0,99029.0,0.20196104]
[1763063225020,0.04885,99041.0,99030.0,0.20195832]
[1763063225231,0.04946,99030.0,99020.0,0.47853601]
[1763063225454,0.09015,99040.0,99020.0,0.47853601]
[1763063225663,0.09892,99021.0,99011.0,0.323]
[1763063225865,0.09892,99021.0,99002.0,0.1206661]
[1763063225866,0.09892,99021.0,99002.0,0.02324]
[1763063226071,0.09892,99021.0,99005.0,0.30017843]
[1763063226275,0.09892,99021.0,99010.0,0.47853601]
[1763063226411,0.00054467,99011.0,99010.0,0.47853601]
[1763063226614,0.00054467,99011.0,99002.0,0.02324]
[1763063226828,0.13921,99021.0,99002.0,0.02324]
[1763063227033,0.19209915,99020.0,98990.0,0.57670516]
[1763063227233,0.19209915,99020.0,98991.0,0.11961188]
[1763063227418,0.1127604,99019.0,99010.0,0.001]
[1763063227622,0.0188304,99018.0,99010.0,0.001]
[1763063227828,0.04573,99011.0,99010.0,0.001]
[1763063228029,0.04573,99011.0,98990.0,0.47853601]
[1763063228229,0.09344,99010.0,98990.0,0.68057635]
[1763063228735,0.09344,99010.0,98990.0,0.75803992]
[1763063228940,0.09344,99010.0,98990.0,0.55599958]
[1763063229997,0.09344,99010.0,98990.0,0.48099958]
[1763063230860,0.09444,99010.0,98990.0,0.20204054]
[1763063231186,0.09444,99010.0,98992.0,0.20203455]
[1763063231187,0.001,99010.0,98992.0,0.20203455]
[1763063231420,0.002,99010.0,98991.0,0.09983]
[1763063231626,0.002,99010.0,99000.0,0.47853601]
[1763063231840,0.001,99010.0,99008.0,0.20200295]
[1763063232044,0.19223858,99019.0,99009.0,0.08804]
[1763063232045,0.00013943,99019.0,99009.0,0.08804]
[1763063232452,0.00051873,99010.0,99009.0,0.02324]
[1763063233827,0.00051873,99010.0,99009.0,0.02424]
[1763063235500,0.00051873,99010.0,99009.0,0.34724]
[1763063235825,0.00051873,99010.0,99009.0,0.4625796]
[1763063236025,0.00051873,99010.0,99009.0,0.39065874]
[1763063236229,0.00051873,99010.0,99009.0,0.46535874]
[1763063236440,0.00051873,99010.0,99009.0,0.46435874]
[1763063236885,1e-08,99019.0,99018.0,0.56840221]
[1763063237088,0.0002,99080.0,99042.0,0.323]
[1763063237288,0.0002,99080.0,99041.0,0.04341874]
[1763063237289,0.00013938,99076.0,99075.0,0.03738]
[1763063237585,0.00013938,99076.0,99075.0,0.30404727]
[1763063237790,0.00013938,99076.0,99075.0,0.23924727]
[1763063238195,0.00013938,99076.0,99075.0,0.56224727]
[1763063238394,0.00013938,99076.0,99075.0,0.66041642]
[1763063238572,0.00013938,99076.0,99075.0,0.41423751]
[1763063239110,0.00013938,99076.0,99075.0,0.43661154]